Cogmind - Beta 14 @@@ ROGUE MODE // 2024.08.11 @ 20:18:26 Player: Waste Result: Self-destructed Performance ------------- Evolutions (4) 2000 Regions Visited (5) 1000 Robots Destroyed (92) 460 Value Destroyed (2400) 2400 Prototype IDs (6) 120 Alien Tech Used (0) 0 Bonus (173) 173 TOTAL SCORE: 6153 Bonus ------- High Alert Combat Kills 173 Cogmind --------- Core Integrity 695/850 Matter 300/300 Energy 100/100 System Corruption 1% Temperature Cool (0) Movement Flying (29) Location -6/Factory Parts ------- > --- POWER (2) -------- (None) > --- PROPULSION (5) --- Improved VTOL Module Improved VTOL Module Improved VTOL Module > --- UTILITY (6) ------ Advanced Heat Sink Medium Storage Unit Advanced Weight Redist. System Improved Signal Interpreter > --- WEAPON (2) ------- Scythe > --- INVENTORY (10) --- Xenon Bombardment Thruster Improved Heat Sink Transmission Jammer Advanced ECM Suite Improved Reaction Control System Phase Shifter Cloaking Device Improved Light Armor Plating Authchip [Processor] Long-range Missile Launcher Peak State ------------ > --- POWER ------------ Light Fission Core Light Fission Core > --- PROPULSION ------- Improved Flight Unit Improved VTOL Module Improved VTOL Module Improved VTOL Module Improved Surge Thruster > --- UTILITY ---------- Advanced Heat Sink Medium Storage Unit Advanced Weight Redist. System Structural Scanner Improved Signal Interpreter Improved Reaction Control System > --- WEAPON ----------- Scythe Heavy Pick > --- INVENTORY -------- Xenon Bombardment Thruster Improved Heat Sink Improved Sensor Array Transmission Jammer ECM Suite Phase Shifter Cloaking Device Improved Light Armor Plating Authchip [Processor] Long-range Missile Launcher [Rating: 59] Favorites ----------- Power Light Fission Core Engine Ion Engine Power Core Light Fission Core Propulsion Improved VTOL Module Treads Light Treads Leg Aluminum Leg Wheel Armored Wheel Flight Unit Improved VTOL Module Utility High-capacity Storage Unit Device Structural Scanner Storage High-capacity Storage Unit Processor Improved Signal Interpreter Hackware System Shield Protection Medium Armor Plating Weapon Scythe Energy Gun Particle Gun Ballistic Gun Improved Assault Rifle Ballistic Cannon Light Cannon Launcher EMP Blaster Slashing Weapon Scythe Piercing Weapon Heavy Pick Build | -11 -10 -9 -8 -7 -6 ------- Run | Yrd Mat Mat Mat Fac Fac Slots Evolved 8 | . . 2 2 2 2 Power 1 | . . . . . 1 Propulsion 3 | . . 2 . . 1 Utility 4 | . . . 2 2 . Weapon . | . . . . . . Parts Attached 86 | . 8 14 26 19 19 Power 11 | . . 2 1 2 6 Engine 7 | . . 2 1 2 2 Core 4 | . . . . . 4 Reactor . | . . . . . . Propulsion 25 | . 2 4 10 5 4 Treads 8 | . . . 8 . . Leg . | . . . . . . Wheel 6 | . 2 4 . . . Hover . | . . . . . . Flight 11 | . . . 2 5 4 Utility 23 | . 3 2 4 6 8 Device 12 | . 1 1 1 3 6 Storage 2 | . 1 . . 1 . Processor 2 | . . . . 1 1 Hackware 2 | . . . . 1 1 Protection 5 | . 1 1 3 . . Artifact . | . . . . . . Weapon 27 | . 3 6 11 6 1 Energy Gun 9 | . 1 2 6 . . Energy Cannon . | . . . . . . Ballistic Gun 6 | . 1 3 2 . . Ballistic Cannon 2 | . 1 1 . . . Launcher 3 | . . . 3 . . Special Weapon . | . . . . . . Impact Weapon . | . . . . . . Slashing Weapon 6 | . . . . 6 . Piercing Weapon 1 | . . . . . 1 Special Melee Weapon . | . . . . . . Unidentified Prototypes 6 | . . 2 4 . . Parts Lost 32 | . 2 3 16 . 11 Power 7 | . . 1 1 . 5 Propulsion 10 | . . . 7 . 3 Utility 9 | . 1 1 5 . 2 Weapon 6 | . 1 1 3 . 1 Highest Loss Streak 7 | . 1 1 5 . 7 To Critical Strikes . | . . . . . . Average Slot Usage (%) 91 | . 87 96 78 92 99 Engine 7 | . 14 11 8 7 1 Core 3 | . . . . . 10 Treads 4 | . . . 21 . . Leg 1 | . 10 . . . . Wheel 13 | . 17 42 7 . . Flight 14 | . . . . 29 32 Device 11 | . . 4 5 21 21 Storage 8 | . 14 11 9 6 6 Processor 2 | . . . . 5 6 Hackware 2 | . . . . 6 4 Protection 2 | . 2 4 7 . . Energy Gun 4 | . 14 6 7 . . Ballistic Gun 5 | . 13 6 10 . . Ballistic Cannon 1 | . . 8 . . . Slashing Weapon 4 | . . . . 12 9 Peak Build Rating 59 | . 11 22 23 40 59 Average Rating 29 | . 8 17 18 35 52 On Entrance 17 | 6 6 11 22 20 40 Naked Turns . | . . . . . . Heaviest Build 68 | 13 52 60 68 24 33 Greatest Support 80 | 20 24 48 80 27 36 Greatest Overweight (x) 5 | . 2 1 2 1 5 Average Overweight (x) . | . . . . . . Largest Inventory Capacity 20 | . 20 20 20 20 10 Average Capacity 14 | . 13 20 20 10 10 Most Carried 20 | . 10 20 20 18 10 Average Carried 11 | . 7 16 15 8 9 Final Capacity 20 | 8 20 20 20 10 10 Final Carried 20 | 6 10 20 18 10 10 Class Distribution -------------------- 45% | Mutant 21% | Scout 21% | Sprinter 9% | Scavenger-Mutant Dominant Class ---------------- Mutant | -10/Materials Mutant | -9/Materials Mutant | -8/Materials Sprinter | -7/Factory Scout | -6/Factory Resources | -11 -10 -9 -8 -7 -6 ----------- Run | Yrd Mat Mat Mat Fac Fac Matter Collected 1936 | 200 174 495 697 190 180 Remotely . | . . . . . . Salvage Created 4034 | . 339 1161 1919 162 453 Parts 200 | . 22 68 87 7 16 Haulers Intercepted 11 | . . 3 3 2 3 Recyclers Shooed 3 | . . 2 1 . . Parts Field Recycled . | . . . . . . Retrieved Matter . | . . . . . . Parts Self-Destructed . | . . . . . . Prevented . | . . . . . . Kills | -11 -10 -9 -8 -7 -6 ------- Run | Yrd Mat Mat Mat Fac Fac Combat Hostiles Destroyed 57 | . 10 22 25 . . Guns 38 | . 9 12 17 . . Cannons 11 | . 1 10 . . . AOE 6 | . . . 6 . . Classes Destroyed 11 | . 3 6 2 . . Worker 3 | . . 1 2 . . Builder 8 | . . 1 5 1 1 Hauler 11 | . . 3 3 2 3 Recycler 7 | . . 4 2 . 1 Mechanic 1 | . . . 1 . . Watcher 5 | . 1 1 2 1 . Swarmer 9 | . 3 6 . . . Grunt 41 | . 7 13 21 . . Brawler 1 | . . . 1 . . Duelist 1 | . . 1 . . . Sentry 5 | . . 2 3 . . Best Kill Streak 11 | . 3 5 11 1 2 Combat Bots Only 6 | . 2 4 6 . . Max Kills in Single Turn 3 | . 1 1 3 1 1 Gunslinging . | . . . . . . Exploded 2 | . . . 2 . . Melee . | . . . . . . Uniques/NPCs Destroyed . | . . . . . . Combat | -11 -10 -9 -8 -7 -6 -------- Run | Yrd Mat Mat Mat Fac Fac Hostile Shots Fired 426 | . 74 76 161 10 105 Missed 134 | . 16 17 34 5 62 Damage Taken 4438 | . 650 747 2094 77 870 Core 666 | . 150 134 194 33 155 Absorbed by Shields . | . . . . . . Regen/Repaired (Parts) 203 | . . 175 . . 28 Core Remaining (%) 73 | 100 40 66 64 95 . Volleys Fired 228 | . 45 76 107 . . Largest 2 | . 2 2 2 . . Hottest 100 | . 100 100 90 . . Shots Fired 431 | . 89 149 193 . . Gun 358 | . 85 95 178 . . Cannon 58 | . 4 54 . . . Launcher 15 | . . . 15 . . Special . | . . . . . . Kinetic 286 | . 44 103 139 . . Thermal 91 | . 45 46 . . . Explosive . | . . . . . . Electromagnetic 54 | . . . 54 . . Robot Hit Streak 25 | . 12 11 25 . . Robot Miss Streak 6 | . 4 6 4 . . Penetration Max . | . . . . . . Secondary Targets 5 | . 3 . 2 . . Max Gunslinging Chain 1 | . 1 . 1 . . Shots Hit Robots 316 | . 58 89 152 8 9 Core Hits 147 | . 19 41 79 3 5 Critical Kills 1 | . 1 . . . . Critical Parts Destroyed . | . . . . . . Critical Strikes 4 | . 2 1 . . 1 Burn 1 | . . 1 . . . Destroy 1 | . 1 . . . . Blast 1 | . 1 . . . . Sever 1 | . . . . . 1 Melee Attacks 44 | . . . . 11 33 Impact . | . . . . . . Slashing 26 | . . . . 11 15 Piercing 18 | . . . . . 18 Sneak Attacks 8 | . . . . 4 4 Combat Hostiles . | . . . . . . Follow-up Attacks 3 | . . . . 1 2 Damage Inflicted 6470 | . 727 1495 3407 408 433 Guns 3955 | . 677 955 2323 . . Cannons 590 | . 50 540 . . . Explosions 1084 | . . . 1084 . . Melee 841 | . . . . 408 433 Ramming . | . . . . . . Kinetic 3195 | . 382 1135 1678 . . Thermal 1048 | . 345 360 343 . . Explosive . | . . . . . . Electromagnetic 1386 | . . . 1386 . . Impact . | . . . . . . Slashing 729 | . . . . 408 321 Piercing 112 | . . . . . 112 Highest Corruption 1 | . . . . . 1 Average Corruption 1 | . . . . . 1 Corruption Purged . | . . . . . . Corruption Blocked . | . . . . . . Overload Shots . | . . . . . . Overflow Damage 41 | . . . 10 31 . Projectiles . | . . . . . . Explosions 10 | . . . 10 . . Melee 31 | . . . . 31 . Knockbacks 8 | . 2 6 . . . Impact . | . . . . . . Kinetic 7 | . 2 5 . . . Secondary 1 | . . 1 . . . Self-Inflicted Damage 60 | . . . 60 . . Shots 4 | . . . 4 . . Rammed . | . . . . . . Targets Rammed . | . . . . . . Kicked . | . . . . . . Crushed . | . . . . . . Highest Temperature 429 | . 256 429 267 . 259 Average Temperature 82 | . 82 144 73 . 68 Received Heat Transfer 1803 | . 333 213 1197 6 54 Effects 3 | . . 3 . . . Shutdowns 2 | . . 2 . . . Damage (minor) 1 | . . 1 . . . Siege Activations . | . . . . . . Robots Corrupted 2 | . . . 2 . . Combat Hostiles 2 | . . . 2 . . Parts Fried 8 | . . . 8 . . Impact Corruptions . | . . . . . . Robots Melted . | . . . . . . Combat Hostiles . | . . . . . . Parts Melted 3 | . 1 1 1 . . Heat Transferred 2223 | . 798 925 500 . . Parts Sabotaged . | . . . . . . Parts Stolen . | . . . . . . Parts Stripped . | . . . . . . Power Chain Reactions 8 | . . . 8 . . Alert | -11 -10 -9 -8 -7 -6 ------- Run | Yrd Mat Mat Mat Fac Fac Peak Influence 731 | . 251 496 629 277 731 Initial 217 | . . 57 186 217 56 Average 227 | . 92 342 372 189 133 Maximum Alert Level 3 | . 1 2 2 1 3 Low Security (%) 49 | . 96 18 9 40 81 Level 1 30 | . 3 36 59 59 6 Level 2 19 | . . 45 31 . 10 Level 3 . | . . . . . . Level 4 . | . . . . . . Level 5 . | . . . . . . High Security . | . . . . . . Max Security . | . . . . . . Squads Dispatched 25 | . 3 3 4 3 12 Investigation 11 | . 1 1 1 . 8 Extermination 2 | . . . . . 2 Reinforcement 11 | . 2 2 2 3 2 Assault 1 | . . . 1 . . Garrison . | . . . . . . Intercept . | . . . . . . Searches Triggered . | . . . . . . Construction Impeded 1 | . . . 1 . . Haulers Reinforced . | . . . . . . Active Scanning Responses . | . . . . . . Cargo Convoy Interrupts 1 | . . . . . 1 Stealth | -11 -10 -9 -8 -7 -6 --------- Run | Yrd Mat Mat Mat Fac Fac Distress Signals 11 | . 2 3 5 . 1 Communications Jammed . | . . . . . . Distress Signals . | . . . . . . Times Spotted 158 | . 19 34 42 8 55 Peak Tracking Total 17 | . 5 5 6 2 17 Tactical Retreats 21 | . 2 2 2 . 15 Traps | -11 -10 -9 -8 -7 -6 ------- Run | Yrd Mat Mat Mat Fac Fac Traps Triggered 9 | . 1 2 1 2 3 Indirectly . | . . . . . . Trap Hack Attempts . | . . . . . . Triggered . | . . . . . . Disarmed . | . . . . . . Reprogrammed . | . . . . . . Reused . | . . . . . . Traps Extracted . | . . . . . . Installed . | . . . . . . Triggered . | . . . . . . Machines | -11 -10 -9 -8 -7 -6 ---------- Run | Yrd Mat Mat Mat Fac Fac Machines Disabled 3 | . . 2 1 . . Max in Single Turn 1 | . . 1 1 . . Machines Repaired . | . . . . . . Machines Dismantled . | . . . . . . Machines Sabotaged . | . . . . . . Overloaded Fab Kills . | . . . . . . Hacking | -11 -10 -9 -8 -7 -6 --------- Run | Yrd Mat Mat Mat Fac Fac Machines Accessed 29 | . 2 7 . 4 16 Terminals 19 | . 2 5 . 3 9 Fabricators 3 | . . . . . 3 Repair Stations 4 | . . 2 . . 2 Recycling Units . | . . . . . . Scanalyzers 2 | . . . . 1 1 Garrison Access 1 | . . . . . 1 Total Hacks 85 | . 5 25 . 15 40 Successful 41 | . 5 15 . 8 13 Failed 44 | . . 10 . 7 27 Catastrophic 6 | . . 1 . 1 4 Database Lockouts . | . . . . . . Manual 62 | . 4 17 . 13 28 Terminals 63 | . 5 20 . 13 25 Fabricators 7 | . . . . . 7 Repair Stations 9 | . . 5 . . 4 Recycling Units . | . . . . . . Scanalyzers 5 | . . . . 2 3 Garrison Access 1 | . . . . . 1 Terminal Hacks 5 | . 1 3 . 1 . Part Schematic 1 | . . . . 1 . Branch Access Points 1 | . . 1 . . . Hauler Manifests 2 | . 1 1 . . . Registered Components 1 | . . 1 . . . Fabricator Hacks 3 | . . . . . 3 Network Status 2 | . . . . . 2 Load Schematic 1 | . . . . . 1 Repair Station Hacks 6 | . . 5 . . 1 Scan Component 2 | . . 2 . . . Repair 2 | . . 2 . . . Refit 2 | . . 1 . . 1 Recycling Unit Hacks . | . . . . . . Scanalyzer 2 | . . . . 2 . Insert Component 1 | . . . . 1 . Analyze 1 | . . . . 1 . Garrison Access Hacks . | . . . . . . Unauthorized Hacks 25 | . 4 7 . 5 9 Terminals 23 | . 4 7 . 5 7 Assimilate 1 | . . . . . 1 Botnet 10 | . 2 2 . 2 4 Skim 12 | . 2 5 . 3 2 Fabricators 1 | . . . . . 1 Recompile 1 | . . . . . 1 Repair Stations 1 | . . . . . 1 Patch 1 | . . . . . 1 Recycling Units . | . . . . . . Scanalyzers . | . . . . . . Garrison Access . | . . . . . . Data Cores Recovered . | . . . . . . Used . | . . . . . . Hacking Detections 26 | . 2 5 . 4 15 Full Trace Events 3 | . . . . . 3 Feedback Events . | . . . . . . Feedback Blocked . | . . . . . . Robot Schematics Acquired . | . . . . . . Robots Built . | . . . . . . Authchips . | . . . . . . Time . | . . . . . . Total Robot Build Rating . | . . . . . . Part Schematics Acquired 2 | . . . . 2 . Parts Built . | . . . . . . Authchips . | . . . . . . Time . | . . . . . . Total Part Build Rating . | . . . . . . Parts Repaired 2 | . . 2 . . . Time 64 | . . 64 . . . Parts Recycled . | . . . . . . Recycled Matter . | . . . . . . Retrieved Matter . | . . . . . . Retrieved Components . | . . . . . . Parts Scanalyzed 1 | . . . . 1 . Part Schematics Acquired 1 | . . . . 1 . Parts Damaged . | . . . . . . Bothacking | -11 -10 -9 -8 -7 -6 ------------ Run | Yrd Mat Mat Mat Fac Fac Used RIF Installer . | . . . . . . Robots Hacked . | . . . . . . Non-combat . | . . . . . . Combat . | . . . . . . Robot Hacks Applied . | . . . . . . Relay Couplers Released . | . . . . . . Fabnet Peak Effective % . | . . . . . . Robots Rewired . | . . . . . . Allies Hacked . | . . . . . . Hacks Repelled . | . . . . . . Allies | -11 -10 -9 -8 -7 -6 -------- Run | Yrd Mat Mat Mat Fac Fac Total Allies 1 | . . . . . 1 Largest Group 1 | . . . . . 1 Highest-Rated Group 10 | . . . . . 10 Highest-Rated Ally 10 | . . . . . 10 Total Orders . | . . . . . . Ally Attacks . | . . . . . . Total Damage . | . . . . . . Kills . | . . . . . . Allies Corrupted . | . . . . . . Allies Melted . | . . . . . . Intel | -11 -10 -9 -8 -7 -6 ------- Run | Yrd Mat Mat Mat Fac Fac Robot Analysis Total . | . . . . . . Derelict Logs Recovered . | . . . . . . Drone Launches . | . . . . . . Drone Recoveries . | . . . . . . Exploration | -11 -10 -9 -8 -7 -6 ------------- Run | Yrd Mat Mat Mat Fac Fac Turns Passed 4423 | . 648 925 881 669 1300 Spaces Moved 5037 | 1 406 544 335 840 2911 Core 1 | . . . . . 1 Treads 261 | . . . 261 . . Legs 183 | 1 182 . . . . Wheels 842 | . 224 544 74 . . Hover . | . . . . . . Flight 3750 | . . . . 840 2910 Fastest Speed 23 | 120 90 90 105 27 23 Average Speed 48 | 120 113 104 148 27 23 Slowest Speed 300 | 120 120 105 240 97 300 Overloaded Moves . | . . . . . . Propulsion Burnouts . | . . . . . . Robots Hopped 65 | . . . . 5 60 Cave-ins Triggered . | . . . . . . Exploration Rate (%) 38 | 1 57 44 38 25 65 Regions Visited 5 Branch Regions . Pre-discovered Areas . | . . . . . . Known Exits Taken . | . . . . . . Unknown Exits Taken 5 | 1 1 1 1 1 . Scrap Searched . | . . . . . . Spaces Dug 18 | . . . . 1 17 Terrain Destroyed 42 | . . . 24 1 17 Melee 18 | . . . . 1 17 Projectile . | . . . . . . AOE 24 | . . . 24 . . Terrain Rammed . | . . . . . . Walls Destroyed . | . . . . . . Machines Disabled . | . . . . . . Actions | -11 -10 -9 -8 -7 -6 --------- Run | Yrd Mat Mat Mat Fac Fac Total 6460 | . 505 749 523 1267 3416 Wait 1003 | . 36 95 38 340 494 Move 4911 | . 405 543 334 829 2800 Hop 56 | . . . . 5 51 Pick Up 48 | . 6 13 10 9 10 Fast Attach 33 | . 4 6 7 6 10 Attach 33 | . 1 4 14 11 3 Detach 10 | . . 2 2 5 1 Swap 20 | . 3 4 5 2 6 Drop 47 | . 5 6 6 15 15 Fire 228 | . 45 76 107 . . Melee 35 | . . . . 9 26 Ram . | . . . . . . Kick . | . . . . . . Crush . | . . . . . . Escape Stasis 36 | . . . . 36 . Rewire . | . . . . . . Trap . | . . . . . . Miscellaneous . | . . . . . . Route ------- -11/Scrapyard -10/Materials (discovered 3 exits: *Mat / [*Min x2]) -9/Materials (discovered 2 exits: [*Mat] / Min) -8/Materials -7/Factory (discovered 3 exits: *Fac / [*Sto] / [*Low]) -6/Factory (discovered 3 exits: *Fac / *Low x2) History --------- Turn | Location | Event 1 | -11/Scrapyard | Discovered new exit (range 0) 1 | -11/Scrapyard | Entered Materials 81 | -10/Materials | Discovered new exit (range 13) 108 | -10/Materials | Discovered new exit (range 12) 313 | -10/Materials | Build established: Mutant 411 | -10/Materials | Discovered new exit (range 8) 463 | -10/Materials | Core integrity fell below 50% 649 | -10/Materials | Entered another Materials area 649 | -9/Materials | Evolved 2 slots: Propulsion x2 715 | -9/Materials | Repaired Arm. Wheel 1222 | -9/Materials | Repaired Arm. Wheel 1350 | -9/Materials | Discovered new exit (range 13) 1421 | -9/Materials | Identified exit to Mines 1574 | -9/Materials | Entered another Materials area 1574 | -8/Materials | Evolved 2 slots: Utility x2 1770 | -8/Materials | Lost 3 parts (2n1u) 1896 | -8/Materials | Met 7R-MNS 2095 | -8/Materials | Build established: Scavenger-Mutant 2098 | -8/Materials | Lost 3 parts (1n1u1w) 2270 | -8/Materials | Lost 3 parts (1p1u1w) 2345 | -8/Materials | Lost 5 parts (4n1w) 2374 | -8/Materials | First assault squad dispatched 2393 | -8/Materials | Discovered new exit (range 16) 2455 | -8/Materials | Entered Factory 2455 | -7/Factory | Evolved 2 slots: Utility x2 2456 | -7/Factory | Caught up to 7R-MNS 2655 | -7/Factory | Discovered new exit (range 13) 2750 | -7/Factory | Build established: Sprinter 2826 | -7/Factory | Discovered new exit (range 13) 3113 | -7/Factory | Discovered new exit (range 10) 3124 | -7/Factory | Entered another Factory area 3124 | -6/Factory | Evolved 2 slots: Power x1, Propulsion x1 3125 | -6/Factory | Caught up to 7R-MNS 3367 | -6/Factory | Discovered new exit (range 12) 3787 | -6/Factory | Build established: Scout 3847 | -6/Factory | Cargo convoy interrupted 3882 | -6/Factory | 7R-MNS lamented failing the tripod run 3934 | -6/Factory | Discovered new exit (range 6) 3935 | -6/Factory | Identified exit to Lower Caves 4411 | -6/Factory | Discovered new exit (range 14) 4417 | -6/Factory | Identified exit to Factory 4424 | -6/Factory | Self-destructed Last Messages --------------- 04380_ Connecting with Terminal... 04380_ ALERT: Suspicious activity at Terminal F016. Dispatching Investigation squad. 04411_ EXIT=FOUND 04412_ Imp. Sensor Array destroyed. 04414_ Penetrated by Slug. 04414_ Backup Power III destroyed. 04416_ Knocked back. 04417_ EXIT=IDENTIFIED: FACTORY 04417_ Imp. Surge Thruster destroyed. 04417_ Scythe follow-up attack on H-61 Shepherd. 04418_ H-61 Shepherd calls for reinforcements. 04418_ ALERT: Hostile activity reported, dispatching reinforcements to area. 04418_ Penetrated by Slug. 04418_ Imp. Flight Unit destroyed. 04418_ Structural Scanner destroyed. 04418_ Knocked back. 04418_ Hvy. Pick destroyed. 04420_ Backup Power III destroyed. Map ----- +----------------------------------------------------+ | ???????????????????????????????????? | | ???????????????????????????????????? | | ???????????????????????????????????? | | ???????????????????????????????????? | | ???????????????????????????????????? | | ???????????????????????????????????? | | ???????????????????????????????????? | | ?????????????????????? ?????????? | | ???????????????? + ???????? | | ??????????#### # ???????? | | ??????????#### # ???????? | | ?????????? # ???????? | | ??????????? # ???????? | | ???????????? # ???????? | | ???????????? # ???????? | | ????????????## # ???????? | | ????????????## # ???????? | | ????????????## # ?????? | | ????????????## ####?????? | | ????????????## ##?????? | | ????????????## ##?????? | | ????????????## H ##?????? | | ########### ##?????? | | ########### % ##?????? | | # ! % " #####+;#####????? | | # # # @ #??? | | " # # #??? | | # """ """ / # ! #??? | | # """ """ # p #??? | | # """ """ # # #??? | | # # # #??? | | # ! !# # #??? | | ######"#### # #??? | | # = #??? | | # #??? | | # ] #??? | | # #??? | | ##############??? | | #####################??????????????? | | ##################??????????????? | | ##??????????????????????????????? | | ##??????????????????????????????? | | ]##??????????????????????????????? | | ##??????????????????????????????? | | ##??????????????????????????????? | | ##??????????????????????????????? | | ##??????????????????????????????? | | ##??????????????????????????????? | | ##??????????????????????????????? | | #####??????????????????????????????? | +----------------------------------------------------+ Best States ------------- Heat Dissipation 56 Energy Generation 31 Energy Capacity 430 Matter Stores 300 Matter Capacity 300 Sight Range 18 Robot Scan Range 15 Terrain Scan Density 10 Additional Mass Support 9 Armor Coverage 450 Evasion (%) 75 Recoil Reduction 4 Defensive Hacking 10 Authchip Count 1 Item Schematics ----------------- Imp. Medium Armor Plating | -7/Factory | Scanalyzed Imp. Signal Interpreter | -7/Factory | Hacked Robot Schematics ------------------ None Fabricated ------------ Nothing Alien Tech Used ----------------- None Achievements -------------- None Challenges ------------ None Game ------ Seed AccelerationSigixMediator Manual? 0 Play Time 00:54:39 Cumulative 286.4 hours Start 2024.08.10 @ 18:27:03 End 2024.08.11 @ 20:18:26 Sessions 7 Manual Loads 0 Difficulty Rogue Special Mode None Game No. 368 Rogue 368 Adventurer 0 Explorer 0 Win Type - Total 15 Types 6/1/4/1/1/0/0/1/1 Lore% 79 Gallery% 80 Achievement% 73 Wizard Run 0 Options --------- Layout 0 ASCII 0 Keyboard 0 Movement Numpad Keybinds 0 Fullscreen 1 Font 18/SmallcapsGlow Map View 76x50 Zoom Use 0% Tactical HUD 1 Map Filters NONE Filters NONE Steam 1 RUN: 723c034d-f1a7-43cc-8f65-11f56db9d158